bitfinex/quotes_ETHUSD_20250608
["timestamp","ask_amount","ask_price","bid_price","bid_amount"]
[1749425438876,0.7524,2512.3,2511.9,3.98093956]
[1749425439039,4.93000308,2512.2,2511.7,3.98129995]
[1749425439381,0.7524,2512.0,2511.2,0.8139]
[1749425439671,4.93046019,2511.9,2511.4,3.98180407]
[1749425439821,7.3044,2512.0,2511.6,3.98144671]
[1749425440021,0.94931464,2511.9,2511.6,3.98144671]
[1749425440233,7.3044,2512.0,2511.7,3.9813594]
[1749425440441,7.3044,2512.0,2511.5,3.98162633]
[1749425440442,7.3044,2512.0,2511.6,3.98144181]
[1749425440838,7.3044,2512.0,2511.7,3.98129351]
[1749425441060,7.3044,2512.0,2511.6,3.98141678]
[1749425441268,8.34369903,2512.0,2511.2,0.8139]
[1749425441439,8.34369903,2512.0,2511.1,3.9823139]
[1749425441440,3.98152572,2511.6,2511.1,3.9823139]
[1749425441644,3.9813672,2511.7,2510.9,3.98252322]
[1749425441645,0.7706,2511.4,2510.9,3.98252322]
[1749425441862,0.7706,2511.4,2511.0,4.45886602]
[1749425442083,6.551,2511.5,2511.3,3.98184571]
[1749425442253,6.551,2511.5,2511.0,4.45886839]
[1749425442446,6.551,2511.5,2511.4,3.98184279]
[1749425443969,6.551,2511.5,2511.3,3.98192289]
[1749425444666,6.551,2511.5,2511.3,0.79640234]
[1749425444839,6.551,2511.5,2511.4,3.98184279]
[1749425448549,1.99938592,2512.2,2511.3,3.98193938]
[1749425448747,0.94902709,2512.1,2512.0,3.98089171]
[1749425449006,2.5279,2512.4,2511.8,12.29521795]
[1749425449302,1.715,2512.4,2512.1,3.98062033]
[1749425449596,1.715,2512.4,2511.7,3.98133779]
[1749425449597,0.8129,2512.3,2511.7,3.98133779]
[1749425450059,0.8129,2512.3,2511.9,3.98101404]
[1749425450481,4.79331883,2512.3,2511.8,3.98114161]
[1749425450853,0.8129,2512.3,2511.8,3.98114161]
[1749425451249,4.79339996,2512.3,2511.8,3.98114161]
[1749425451559,0.8129,2512.3,2511.6,4.77528647]
[1749425451884,1.715,2512.4,2512.3,3.98041635]
[1749425452084,1.59030415,2512.9,2512.6,3.97994109]
[1749425452085,1.18648592,2512.8,2512.6,3.97994109]
[1749425452287,1.18648592,2512.8,2512.5,3.9800136]
[1749425452288,0.94908973,2512.7,2512.5,3.9800136]
[1749425452451,6.55,2512.8,2512.5,3.9800136]
[1749425452651,0.94895372,2512.7,2512.5,3.9800136]
[1749425452846,6.55,2512.8,2512.5,3.9800136]
[1749425453049,0.94895505,2512.7,2512.2,3.98053508]
[1749425453253,6.55,2512.8,2512.3,1.30958429]
[1749425453449,0.94896441,2512.7,2512.4,3.98019084]
[1749425453751,6.55,2512.8,2512.4,3.98019084]
[1749425453951,0.94891686,2512.7,2512.4,3.98019084]
[1749425454175,6.55,2512.8,2512.4,3.98019084]
[1749425454374,0.94892349,2512.7,2512.4,3.98019084]
[1749425454561,6.55,2512.8,2512.4,4.7762631]
[1749425454762,1.32051666,2512.7,2512.4,4.7762631]
[1749425454995,6.55,2512.8,2512.4,4.7762631]
[1749425455196,0.94894779,2512.7,2512.4,4.7762631]
[1749425455401,6.55,2512.8,2512.4,4.7762631]
[1749425455568,0.94906822,2512.7,2512.5,0.47762631]
[1749425455768,6.55,2512.8,2512.5,0.47762631]
[1749425455985,0.94905132,2512.7,2512.5,0.47762631]
[1749425456160,10.52962589,2512.8,2512.5,0.47762631]
[1749425456488,0.94905554,2512.7,2512.5,0.47762631]
[1749425456646,6.55,2512.8,2512.5,0.47762631]
[1749425456849,0.94923923,2512.7,2512.5,0.47762631]
[1749425457043,6.55,2512.8,2512.5,0.47762631]
[1749425457044,10.52968944,2512.8,2512.5,0.47762631]
[1749425457252,0.7702,2512.5,2512.0,3.98074494]
[1749425457547,0.7702,2512.5,2512.1,3.98062463]
[1749425457751,0.7702,2512.5,2512.2,0.39806246]
[1749425458591,4.75038952,2512.5,2512.2,0.39806246]
[1749425458954,4.75038952,2512.5,2512.0,3.98080764]
[1749425458955,3.98026232,2512.4,2511.9,3.9809441]
[1749425459351,4.75037632,2512.5,2512.0,3.98087672]
[1749425459669,0.7702,2512.5,2511.8,0.39875639]
[1749425459873,3.98053108,2512.3,2511.8,3.98111066]
[1749425460091,6.549,2512.2,2511.8,3.98111066]
[1749425460466,6.549,2512.2,2511.9,3.98104714]
[1749425460788,0.37244753,2512.1,2511.9,3.98104714]
[1749425460956,6.549,2512.2,2512.0,3.98089171]
[1749425461152,6.549,2512.2,2511.9,3.98097189]
[1749425461382,6.549,2512.2,2511.9,4.77718751]
[1749425461568,6.549,2512.2,2511.8,19.9811314]
[1749425462084,0.37244406,2512.1,2511.6,1.15485269]
[1749425462267,6.549,2512.2,2512.0,3.9808456]
[1749425462598,0.37243775,2512.1,2511.9,3.98103199]
[1749425462803,0.37243775,2512.1,2511.7,3.98131138]
[1749425462804,0.769,2512.1,2511.4,3.98182567]
[1749425462981,0.769,2512.1,2511.8,3.981128]
[1749425463150,1.714,2512.3,2511.6,3.98152572]
[1749425463348,7.87028034,2512.2,2512.0,3.98074064]
[1749425463585,2.483,2512.3,2512.0,3.98089171]
[1749425463794,0.94905539,2512.2,2512.1,3.98073227]
[1749425463973,1.32147453,2512.2,2512.1,3.98073227]
[1749425464174,0.94905539,2512.2,2512.1,3.98073227]
[1749425464773,0.94905539,2512.2,2512.0,3.98081653]
[1749425464988,8.263,2512.3,2512.0,3.98081653]
[1749425465188,0.94911765,2512.2,2512.0,3.98081653]
[1749425465392,8.263,2512.3,2512.1,3.98069489]
[1749425465595,0.94911393,2512.2,2512.1,3.98069489]
[1749425465976,1.32151519,2512.2,2512.1,3.98069489]
[1749425466183,0.94911393,2512.2,2512.1,3.98069489]
[1749425466952,1.32153652,2512.2,2512.1,3.98069489]
[1749425467183,0.94911393,2512.2,2512.1,3.98069489]
[1749425467871,8.263,2512.3,2512.2,3.98057479]
[1749425468068,8.63544244,2512.3,2512.2,3.98057479]
[1749425468290,8.263,2512.3,2512.2,3.98057479]
[1749425469261,9.21244635,2512.3,2512.1,3.98069489]
[1749425469497,8.263,2512.3,2512.0,3.9808107]
[1749425469656,8.263,2512.3,2512.1,3.98072072]
[1749425470383,8.263,2512.3,2512.2,3.98057479]
[1749425470581,9.21242943,2512.3,2512.2,3.98057479]
[1749425471661,9.58486023,2512.3,2512.2,3.98057479]
[1749425471856,0.37244456,2512.3,2512.2,1.57092814]
[1749425472098,6.548,2512.7,2512.6,3.97994109]
[1749425472269,3.68571415,2512.8,2512.6,3.97985918]
[1749425472270,9.44831415,2512.8,2512.6,3.97985918]
[1749425472480,1.32212919,2512.7,2512.6,3.97985918]
[1749425472675,0.94968078,2512.7,2512.6,3.97985918]
[1749425472875,0.94968078,2512.7,2512.5,3.98005129]
[1749425473089,0.94968078,2512.6,2512.5,3.98005129]
[1749425473905,1.32216386,2512.6,2512.5,3.98005129]
[1749425475574,1.69464055,2512.6,2512.5,3.98005129]
[1749425475910,1.32216386,2512.6,2512.5,3.98005129]
[1749425476405,1.69463989,2512.6,2512.5,4.77608109]
[1749425476596,1.32216386,2512.6,2512.5,4.77608109]
[1749425477596,1.32216386,2512.6,2512.5,3.98005129]
[1749425478194,1.32216386,2512.6,2512.5,4.75905129]
[1749425478195,0.37248308,2512.6,2512.5,4.75905129]
[1749425478622,0.37248308,2512.6,2512.5,20.75905129]
[1749425480612,0.7555,2513.7,2513.1,0.7687]
[1749425480912,0.7555,2513.0,2512.3,0.7687]
[1749425481099,3.97962432,2512.8,2512.3,0.7687]
[1749425481300,3.9796447,2512.8,2512.4,0.47491778]
[1749425482077,3.98000407,2512.6,2512.1,0.7687]
[1749425482303,3.98000407,2512.6,2512.0,3.98073602]
[1749425482304,11.47826211,2512.5,2512.0,3.98085958]
[1749425482521,6.554,2512.4,2512.0,3.98085958]
[1749425482830,6.554,2512.4,2512.0,3.98082998]
[1749425483025,6.554,2512.4,2512.1,0.79618532]
[1749425483427,6.554,2512.4,2512.1,4.776899]
[1749425484130,6.554,2512.4,2512.1,0.79618532]
[1749425484333,6.554,2512.4,2512.0,3.98081799]
[1749425484535,6.554,2512.4,2511.8,0.7687]
[1749425484753,1.18631415,2512.8,2511.8,0.7862]
[1749425484945,7.50091232,2512.7,2512.2,3.98047132]
[1749425485106,0.94991232,2512.6,2512.2,3.98047132]
[1749425485302,6.551,2512.7,2512.2,3.98047132]
[1749425485510,1.71759117,2512.6,2512.2,3.98047132]
[1749425485728,0.7677,2512.6,2512.2,3.98047132]
[1749425485936,0.7677,2512.6,2512.3,3.98041353]
[1749425486120,0.7677,2512.6,2512.0,4.76706025]
[1749425486328,0.7677,2512.6,2512.2,3.98048681]
[1749425487739,0.7677,2512.6,2512.2,3.98045963]
[1749425488056,0.94996658,2512.5,2512.2,3.98045963]
[1749425488355,0.7677,2512.6,2512.2,3.98045963]
[1749425488522,0.94990574,2512.5,2512.2,3.98045963]
[1749425488710,0.7677,2512.6,2512.2,3.98045963]
[1749425488912,0.94997123,2512.5,2512.2,3.98045963]
[1749425489148,0.7677,2512.6,2512.2,3.98045963]
[1749425489344,0.94995106,2512.5,2512.2,3.98045963]
[1749425489551,0.7677,2512.6,2512.2,3.98045963]
[1749425489842,0.94990236,2512.5,2512.3,3.98032355]
[1749425490052,0.7677,2512.6,2512.2,3.9805496]
[1749425490255,0.7677,2512.6,2512.3,3.98031607]
[1749425490415,7.3307,2512.6,2512.4,3.98023404]
[1749425490618,7.3307,2512.6,2512.2,4.45723779]
[1749425490831,7.3307,2512.6,2512.4,3.9802531]
[1749425491054,6.563,2512.6,2512.5,3.9800995]
[1749425491232,7.51289586,2512.6,2512.5,3.9800995]
[1749425491429,0.94989586,2512.6,2512.5,13.45961725]
[1749425491631,1.18631415,2513.5,2512.6,0.7674]
[1749425491838,0.7906,2513.3,2512.7,3.97966394]
[1749425492041,0.55,2513.1,2512.5,0.39800995]
[1749425492251,9.04991107,2513.0,2512.5,3.97999207]
[1749425492552,1.32257015,2512.9,2512.5,3.97999207]
[1749425492751,0.95009494,2512.8,2512.5,3.97999207]
[1749425492916,7.3806,2513.0,2512.6,3.97990636]
[1749425493122,1.32230659,2512.9,2512.6,3.97990636]
[1749425493321,0.94983009,2512.8,2512.6,3.97985159]
[1749425493521,6.592,2512.9,2512.6,3.97987229]
[1749425493743,1.32233375,2512.8,2512.6,3.97987229]
[1749425493953,6.591,2512.9,2512.7,3.97974803]
[1749425494157,0.9498966,2512.8,2512.7,3.97974803]
[1749425495159,6.591,2512.9,2512.8,3.97962432]
[1749425495356,7.54099776,2512.9,2512.8,3.97962432]
[1749425495960,1.18631415,2513.3,2513.2,3.97899092]
[1749425496122,2.01141415,2513.4,2513.3,3.97883261]
[1749425496323,7.54111532,2513.4,2513.3,3.97883261]
[1749425496518,7.91361928,2513.4,2513.3,3.97883261]
[1749425496744,7.54111532,2513.4,2513.3,3.97883261]
[1749425496944,7.91358996,2513.4,2513.3,3.97883261]
[1749425497147,0.95011532,2513.4,2513.3,3.97883261]
[1749425497329,1.32258077,2513.4,2513.3,3.97883261]
[1749425497557,0.95011532,2513.4,2513.3,3.97883261]
[1749425497993,1.32254168,2513.4,2513.2,3.97891582]
[1749425498177,1.32254816,2513.3,2512.8,3.97962432]
[1749425498490,0.37242767,2513.2,2513.0,3.9791704]
[1749425498676,6.595,2513.1,2513.0,3.9791704]
[1749425500497,2.00101415,2513.6,2512.9,3.97943575]
[1749425500683,9.2569588,2513.5,2513.4,3.9786743]
[1749425500999,9.62945809,2513.5,2513.4,3.9786743]
[1749425501153,9.62945952,2513.5,2513.4,3.9786743]
[1749425501355,9.2569588,2513.5,2513.3,3.97876194]
[1749425501599,0.9499588,2513.4,2513.3,3.97876194]
[1749425502392,1.32245975,2513.4,2513.3,3.97876194]
[1749425502699,0.9499588,2513.4,2513.3,3.97876194]
[1749425504962,0.7702,2513.2,2512.4,0.7818]
[1749425505165,0.7702,2513.2,2511.4,1.713]
[1749425505166,12.29357375,2512.9,2512.2,0.7818]
[1749425505419,1.99041415,2512.6,2511.7,0.8307]
[1749425505728,17.18631415,2512.4,2511.7,0.8307]
[1749425505872,1.99041415,2512.2,2511.3,0.8307]
[1749425506069,4.25152813,2512.1,2511.6,3.98149853]
[1749425506294,4.78475883,2512.2,2511.9,3.9810502]
[1749425506295,0.9499588,2512.0,2511.9,3.9810502]
[1749425506472,6.601,2512.3,2512.0,0.39810502]
[1749425506673,1.32111628,2512.2,2511.5,3.98157293]
[1749425506890,0.37229735,2512.1,2511.9,3.98092993]
[1749425507097,6.601,2512.3,2511.8,3.981167]
[1749425507307,0.94852296,2512.2,2511.9,3.98095632]
[1749425507471,0.94852741,2512.1,2511.7,3.98134335]
[1749425507682,0.37230537,2512.0,2511.7,3.98134335]
[1749425507878,3.98060303,2512.2,2511.7,3.98134335]
[1749425508087,4.92900884,2512.1,2511.5,3.9815452]
[1749425508423,0.94821327,2512.0,2511.3,1.2321899]
[1749425508723,0.94821327,2512.0,2511.6,8.3141078]
[1749425508724,6.614,2512.0,2511.6,8.3141078]
[1749425508871,6.614,2512.2,2511.8,0.8146]
[1749425509213,6.614,2512.2,2512.1,3.98073325]
[1749425511314,1.743,2512.4,2512.3,3.98041635]
[1749425511519,2.69150643,2512.4,2512.3,3.98041635]
[1749425511721,2.11553877,2512.4,2512.3,3.98041635]
[1749425511887,1.743,2512.4,2512.3,4.77651376]
[1749425512620,0.7756,2512.8,2512.5,3.98008054]
[1749425512821,7.55962203,2512.7,2512.5,3.98008054]
[1749425513020,0.94862203,2512.6,2512.4,3.98020732]
[1749425513251,6.611,2512.7,2512.4,3.98020732]
[1749425513550,1.32145064,2512.6,2512.4,3.98020732]
[1749425513758,6.611,2512.7,2512.4,4.56371772]
[1749425514039,0.94895569,2512.6,2512.5,3.98005577]
[1749425514205,6.609,2512.7,2512.4,4.56375992]
[1749425514206,6.609,2512.7,2512.4,4.56371688]
[1749425514402,6.609,2512.7,2512.4,0.5835104]
[1749425514619,6.609,2512.7,2512.5,3.98009401]
[1749425516019,6.609,2512.7,2512.4,0.5835104]
[1749425516220,6.609,2512.7,2512.1,16.0]
[1749425516419,0.94902235,2512.6,2512.2,3.98044499]
[1749425516625,6.609,2512.7,2512.2,3.98044499]
[1749425516826,6.609,2512.7,2512.4,3.98017517]
[1749425517021,0.37272857,2512.6,2512.5,3.98008114]
[1749425517227,6.609,2512.7,2512.5,3.98008114]
[1749425517641,0.37272427,2512.6,2512.5,3.98008114]
[1749425517836,6.609,2512.7,2512.4,3.98014482]
[1749425518027,6.609,2512.7,2512.5,3.98000824]
[1749425519251,6.601,2512.7,2512.5,3.98000824]
[1749425519415,1.96381415,2513.0,2512.7,3.97971624]
[1749425519752,7.92478255,2512.9,2512.6,3.97986201]
[1749425519916,0.94905172,2512.8,2512.6,3.97986201]
[1749425520122,6.603,2512.9,2512.6,3.97986201]
[1749425520353,1.32178134,2512.8,2512.7,3.97971582]
[1749425520527,0.94905037,2512.8,2512.7,3.97971582]
[1749425521057,0.94905037,2512.8,2512.7,4.89347369]
[1749425521257,8.71744061,2513.1,2513.0,3.9793076]
[1749425521554,9.66645919,2513.1,2513.0,3.9793076]
[1749425521739,3.06545919,2513.1,2513.0,3.9793076]
[1749425521938,9.66845919,2513.1,2513.0,3.9793076]
[1749425522753,9.66745919,2513.1,2513.0,3.9793076]
[1749425522953,9.09117945,2513.1,2513.0,4.77518272]
[1749425523155,8.71844061,2513.1,2513.0,4.77518272]
[1749425523529,9.09117992,2513.1,2513.0,0.79587512]
[1749425523852,9.66737598,2513.1,2512.9,3.97944952]
[1749425524054,8.71844061,2513.1,2512.9,3.97944952]
[1749425524854,0.37275314,2513.0,2512.9,3.97944952]
[1749425525056,8.71844061,2513.1,2512.9,3.97944952]
[1749425525458,8.71844061,2513.1,2512.8,3.97955034]
[1749425525851,0.7807,2513.0,2512.5,0.78]
[1749425526155,0.7807,2513.0,2512.8,3.97953729]
[1749425526751,0.37272909,2512.9,2512.8,3.97953729]
[1749425526951,1.32168557,2512.9,2512.8,3.97953729]
[1749425527127,1.32168838,2512.9,2512.8,3.97953729]
[1749425527327,0.7807,2513.0,2512.8,3.97953729]
[1749425527539,0.94909849,2512.9,2512.8,3.97953729]
[1749425527749,1.32184837,2512.9,2512.8,3.97953729]
[1749425528062,8.71844061,2513.1,2513.0,3.9793076]
[1749425528261,9.66758942,2513.1,2513.0,3.9793076]
[1749425528856,9.65658942,2513.1,2513.0,3.9793076]
[1749425529065,10.02934592,2513.1,2513.0,3.9793076]
[1749425529249,9.65658942,2513.1,2513.0,3.9793076]
[1749425529422,1.32158942,2513.1,2513.0,3.9793076]
[1749425529622,7.91158942,2513.1,2513.0,3.9793076]
[1749425530455,8.28435945,2513.1,2513.0,3.9793076]
[1749425530767,7.91158942,2513.1,2513.0,4.77518404]
[1749425531327,7.91158942,2513.1,2513.0,3.9793076]
[1749425532857,1.32158942,2513.1,2513.0,3.9793076]
[1749425533163,0.37244061,2513.1,2513.0,3.9793076]
[1749425533936,0.37244061,2513.1,2513.0,4.7527076]
[1749425536258,0.37244061,2513.1,2513.0,20.7527076]
[1749425536458,0.37244061,2513.1,2513.0,24.07694856]
[1749425540195,0.37244061,2513.1,2513.0,7.30354856]
[1749425540347,0.37244061,2513.1,2513.0,3.9793076]
[1749425540944,0.37244061,2513.1,2512.8,3.97962432]
[1749425541174,7.73494061,2513.1,2512.8,19.97950779]
[1749425541343,7.73494061,2513.1,2512.9,3.97943389]
[1749425541657,6.95544061,2513.1,2513.0,3.9793076]
[1749425542457,6.95544061,2513.1,2512.9,3.97939445]
[1749425542780,6.95544061,2513.1,2512.8,3.97959838]
[1749425542941,6.95544061,2513.1,2512.9,3.97946595]
[1749425543143,6.95544061,2513.1,2512.8,4.41757605]
[1749425543144,6.95544061,2513.1,2513.0,3.9793076]
[1749425543948,6.95544061,2513.1,2512.9,3.97938964]
[1749425544190,6.95544061,2513.1,2513.0,3.9793076]
[1749425549675,7.90715478,2513.1,2513.0,3.9793076]
[1749425550256,7.90715478,2513.1,2512.9,3.97937861]
[1749425550456,6.95544061,2513.1,2512.9,3.97937861]
[1749425550656,6.95544061,2513.1,2513.0,3.9793076]
[1749425550996,7.90727697,2513.1,2513.0,3.9793076]
[1749425551688,7.90705794,2513.1,2513.0,3.9793076]
[1749425552813,0.37244061,2513.1,2513.0,5.5566846]
[1749425553092,0.37244061,2513.1,2513.0,4.7751846]
[1749425553296,2.1551203,2513.1,2512.5,20.761589]
[1749425553492,2.1551203,2513.1,2512.9,3.97946595]
[1749425553493,0.95157969,2513.0,2512.9,3.97946595]
[1749425553698,3.97972581,2512.8,2512.3,0.8183]
[1749425553906,0.7861,2512.6,2512.0,0.8183]
[1749425554109,4.93165496,2512.5,2512.0,3.98081003]
[1749425554407,0.95154199,2512.4,2512.0,4.37894552]
[1749425554573,6.591,2512.3,2512.1,3.98067999]
[1749425554772,6.591,2512.3,2512.0,3.98081149]
[1749425554993,6.591,2512.3,2512.1,3.98072028]
[1749425555189,6.591,2512.3,2512.1,3.98073325]
[1749425556794,6.591,2512.3,2512.2,3.98057479]
[1749425560118,0.7861,2512.6,2512.4,3.98018094]
[1749425560303,7.53134478,2512.5,2512.4,3.98018094]
[1749425560672,6.581,2512.5,2512.4,3.98018094]
[1749425561317,6.581,2512.5,2512.1,0.771]
[1749425561526,6.581,2512.5,2512.1,3.98061688]
[1749425561685,6.581,2512.5,2512.2,3.98056171]
[1749425565003,6.581,2512.5,2512.0,3.98085755]
[1749425565307,1.70064476,2512.4,2512.0,3.98086591]
[1749425565509,0.7508,2512.4,2512.0,3.98086591]
[1749425566035,0.7508,2512.4,2512.1,3.98070389]
[1749425566182,0.7508,2512.4,2511.8,1.25097317]
[1749425566812,0.7508,2512.4,2511.9,3.9809969]
[1749425566996,0.7508,2512.4,2512.0,3.98075489]
[1749425567198,0.7508,2512.4,2512.1,3.98072326]
[1749425569722,0.95027383,2512.3,2512.1,3.98072326]
[1749425569922,0.7508,2512.4,2512.1,3.98072326]
[1749425570121,0.95024881,2512.3,2512.1,3.98072326]
[1749425570320,0.7508,2512.4,2512.1,3.98072326]
[1749425570492,0.95023854,2512.3,2512.1,3.98072326]
[1749425570819,0.7508,2512.4,2512.1,3.98072326]
[1749425570985,0.95031909,2512.3,2512.1,3.98072326]
[1749425571181,0.7508,2512.4,2512.1,3.98072326]
[1749425571412,0.95032528,2512.3,2512.2,3.98057479]
[1749425573285,0.95032528,2512.3,2512.1,3.98071644]
[1749425573619,0.7508,2512.4,2512.1,3.98059906]
[1749425574120,0.95076292,2512.3,2512.2,3.98057479]
[1749425574701,0.95076292,2512.3,2512.1,3.98065045]
[1749425574904,0.7508,2512.4,2512.1,3.98065045]
[1749425575190,0.95089803,2512.3,2512.1,3.98065045]
[1749425575393,0.7508,2512.4,2512.2,3.98057012]
[1749425575593,0.95088859,2512.3,2512.2,3.98057012]
[1749425576013,0.95088859,2512.3,2512.1,3.98061623]
[1749425576186,0.95107753,2512.2,2512.1,3.98061623]
[1749425576390,0.7508,2512.4,2512.1,3.98061623]
[1749425576596,0.95108424,2512.3,2512.2,3.98057479]
[1749425577200,0.95108424,2512.3,2512.1,3.98064836]
[1749425577429,0.95128455,2512.2,2512.1,3.98064836]
[1749425579338,2.68128455,2512.2,2511.5,3.98159738]
[1749425579540,3.98128322,2511.8,2511.3,4.07935194]
[1749425579744,8.30938455,2511.7,2511.1,3.98222406]
[1749425580044,8.30938455,2511.7,2510.9,0.7984]
[1749425580045,0.7911,2511.3,2510.8,3.98268193]
[1749425580245,0.7911,2511.3,2510.9,3.98262794]
[1749425580246,7.54128455,2511.2,2510.9,3.98262794]
[1749425580541,6.59,2511.2,2510.9,3.98262794]
[1749425580723,0.95181182,2511.1,2510.7,3.9828101]
[1749425580928,0.95181182,2511.0,2510.7,3.98294271]
[1749425581237,0.95173132,2510.9,2510.5,3.98315982]
[1749425581407,7.54773132,2510.8,2510.5,4.65871017]
[1749425581607,0.95214414,2510.7,2510.2,4.78849498]
[1749425581803,6.596,2510.8,2510.1,3.98386388]
[1749425582029,0.95043586,2510.7,2510.0,8.31594436]
[1749425582229,10.57888614,2510.8,2510.2,3.98366844]
[1749425582230,0.95043586,2510.6,2510.2,3.98366844]
[1749425582500,10.57891797,2510.8,2510.2,3.98366844]
[1749425582501,10.57886551,2510.8,2510.2,3.98366844]
[1749425582706,0.94938147,2510.7,2510.3,3.98358379]
[1749425582938,10.57886551,2510.8,2510.3,3.98358379]
[1749425583114,4.93248664,2510.7,2510.2,3.98368755]
[1749425583445,3.98315603,2510.6,2510.0,3.98398914]
[1749425583748,3.98336764,2510.5,2510.0,3.98404885]
[1749425583954,6.596,2510.4,2510.0,3.98404885]
[1749425584964,6.596,2510.4,2510.0,3.98405874]
[1749425585136,5.17113991,2510.9,2510.0,8.79483023]
[1749425585137,1.18845365,2510.9,2510.0,8.79483023]
[1749425585454,7.3979,2510.9,2510.8,3.98279432]
[1749425585658,6.593,2510.9,2510.8,3.98279432]
[1749425586020,3.72175365,2511.5,2510.6,8.31594436]
[1749425586216,1.731,2511.5,2511.4,3.98184279]
[1749425586451,6.606,2511.9,2511.5,3.98155398]
[1749425586758,6.608,2511.8,2511.6,3.9814471]
[1749425586919,4.0,2511.7,2511.6,3.9814471]
[1749425587259,6.608,2511.8,2511.6,3.9814471]
[1749425588931,6.608,2511.8,2511.5,3.98165768]
[1749425589147,6.608,2511.8,2511.6,5.21120827]
[1749425589348,6.608,2511.8,2511.6,1.2297602]
[1749425590369,6.608,2511.8,2511.0,0.7911]
[1749425590589,6.29320963,2511.7,2511.0,3.9824771]
[1749425590872,6.29320963,2511.7,2510.9,16.0]
[1749425590873,1.3633,2511.7,2511.2,3.98215253]
[1749425591163,1.3633,2511.7,2511.3,0.79644531]
[1749425591477,1.3633,2511.7,2511.3,3.9819091]
[1749425591678,1.97465365,2512.0,2511.6,3.98150908]
[1749425591891,9.28144106,2511.9,2511.6,3.98145325]
[1749425592052,0.94844106,2511.8,2511.4,3.98175926]
[1749425592246,0.94843796,2511.7,2511.4,0.87780586]
[1749425592554,8.333,2511.9,2511.4,4.85954614]
[1749425592764,0.94851398,2511.8,2511.4,4.85954614]
[1749425593080,0.94851398,2511.7,2511.5,3.98166233]
[1749425593245,0.7862,2512.0,2511.6,4.46747254]
[1749425593446,7.55248585,2511.9,2511.7,3.98127484]
[1749425593656,0.94848585,2511.8,2511.6,0.48594682]
[1749425593888,6.604,2511.8,2511.5,3.98166792]
[1749425594399,6.604,2511.8,2511.4,3.98175644]
[1749425594684,6.604,2511.8,2511.6,3.98145312]
[1749425595212,6.604,2511.8,2511.5,3.98161936]
[1749425595392,6.604,2511.8,2511.2,0.8143]
[1749425595551,3.98160984,2511.6,2510.8,0.8128]
[1749425595749,4.75776519,2511.7,2511.0,3.98238085]
[1749425595982,4.93051662,2511.6,2511.0,3.98238085]
[1749425596247,0.94890306,2511.5,2511.1,3.98229527]
[1749425596447,6.604,2511.4,2511.1,3.98229527]
[1749425596698,6.604,2511.4,2511.2,3.98207315]
[1749425597281,6.604,2511.4,2511.1,3.98223402]
[1749425598066,6.604,2511.4,2511.0,3.98242023]
[1749425598249,6.604,2511.4,2511.2,3.98204777]
[1749425598888,4.7576825,2511.7,2511.4,3.98173657]
[1749425598889,6.599,2511.5,2511.4,3.98173657]
[1749425599103,1.18560529,2511.9,2511.4,3.98169207]
[1749425599265,7.55004646,2511.8,2511.6,3.98152468]
[1749425599466,6.601,2511.8,2511.6,3.98152468]
[1749425599670,0.763,2512.0,2511.5,8.31594436]
[1749425599874,7.55007826,2511.9,2511.6,0.83159444]
[1749425600206,6.601,2511.9,2511.7,3.9813672]
[1749425600362,6.601,2511.9,2511.6,3.98144729]
[1749425600703,6.601,2511.9,2511.5,3.98161197]
[1749425600906,1.73554386,2511.8,2511.2,8.31594436]
[1749425601107,6.601,2511.9,2511.7,3.9813672]
[1749425601981,6.6,2511.8,2511.3,5.29423082]
[1749425602379,6.6,2511.8,2511.7,3.98120967]
[1749425602813,6.6,2511.8,2511.6,3.98143924]
[1749425608134,6.6,2511.8,2511.5,3.98160878]
[1749425608497,6.6,2511.8,2511.4,3.98171526]
[1749425608698,5.69100641,2511.7,2511.2,3.98203459]
[1749425609021,0.95076852,2511.6,2511.3,3.98198744]
[1749425609320,0.759,2511.7,2511.3,3.98199967]
[1749425609642,4.9324733,2511.6,2510.8,0.7947]
[1749425609851,3.98188187,2511.4,2510.9,3.98249882]
[1749425609988,7.54182358,2511.3,2511.0,3.98244696]
[1749425610187,6.591,2511.3,2511.0,3.98244696]
[1749425611345,6.591,2511.3,2511.1,3.98228887]
[1749425612600,0.95139808,2511.2,2511.1,3.98228887]
[1749425613330,0.9518951,2511.2,2511.1,3.98228887]
[1749425616513,0.9518951,2511.2,2511.1,5.58336505]
[1749425616837,1.18853009,2511.6,2511.5,3.98168425]
[1749425617007,0.9532144,2511.6,2511.5,3.98168425]
[1749425617527,0.9532144,2511.6,2511.5,4.78628425]
[1749425618948,0.9532144,2511.6,2511.5,3.98168425]
[1749425620910,0.9532144,2511.6,2511.4,3.9817706]
[1749425621254,0.95335196,2511.5,2511.4,3.98171991]
[1749425624155,0.95335196,2511.5,2511.4,4.77809113]
[1749425625559,6.582,2511.6,2511.5,3.98168425]
[1749425625744,7.53535634,2511.6,2511.5,3.98168425]
[1749425626656,0.95335634,2511.6,2511.5,3.98168425]
[1749425627262,0.95335634,2511.6,2511.5,4.80678425]
[1749425628229,0.95335634,2511.6,2511.5,3.98168425]
[1749425633971,6.573,2511.7,2511.1,0.79647618]
[1749425633972,6.573,2511.7,2511.1,1.60687618]
[1749425634270,1.53713563,2511.6,2511.3,3.98198892]
[1749425634573,5.51876803,2511.6,2511.1,3.98223491]
[1749425634772,6.47229541,2511.6,2511.1,3.98223491]
[1749425634945,2.49066301,2511.6,2511.3,3.98191396]
[1749425635274,1.53713563,2511.6,2511.3,3.98191396]
[1749425636066,0.7845,2511.6,2511.3,3.98191396]
[1749425636374,0.7845,2511.6,2511.4,3.98183632]
[1749425636674,0.95351917,2511.5,2511.4,3.98183632]
[1749425636972,0.95351917,2511.5,2511.4,8.06247216]
[1749425637203,2.14541813,2511.5,2511.4,9.26691673]
[1749425637606,2.14541813,2511.5,2511.4,8.06247216]
[1749425637874,8.1562123,2511.7,2511.6,3.98152572]
[1749425638070,8.1562123,2511.7,2511.5,3.9816756]
[1749425638071,8.1562123,2511.7,2511.3,8.06260647]
[1749425638250,8.1562123,2511.7,2511.4,3.98176379]
[1749425639139,6.567,2511.7,2511.4,3.98176379]
[1749425639479,0.8122,2511.6,2511.3,3.98198112]
[1749425641379,0.8122,2511.6,2511.4,3.98181398]
[1749425641600,0.8122,2511.6,2511.5,3.98168425]
[1749425641767,2.5337,2511.8,2511.6,3.9814855]
[1749425641961,6.563,2511.7,2511.6,3.9814855]
[1749425645253,6.558,2511.7,2511.6,3.9814855]
[1749425647805,8.70717796,2511.7,2511.6,3.9814855]
[1749425648202,7.5131902,2511.7,2511.6,3.9814855]